bitfinex-derivatives/quotes_BTCF0:USTF0_20250910
["timestamp","ask_amount","ask_price","bid_price","bid_amount"]
[1757521194467,0.86519742,113770.0,113760.0,0.14425368]
[1757521194856,0.86519742,113770.0,113760.0,0.12161368]
[1757521195861,0.98210786,113770.0,113760.0,0.12161368]
[1757521196054,0.86519742,113770.0,113760.0,0.12161368]
[1757521196259,0.98210786,113770.0,113760.0,0.12161368]
[1757521196460,0.86519742,113770.0,113760.0,0.12161368]
[1757521196865,0.86519742,113770.0,113760.0,0.12061368]
[1757521197669,0.86619742,113770.0,113760.0,0.11861368]
[1757521198464,0.86619742,113770.0,113760.0,0.25816412]
[1757521198664,0.05587742,113770.0,113760.0,0.25816412]
[1757521198865,0.86619742,113770.0,113760.0,0.25816412]
[1757521199269,0.86605033,113770.0,113760.0,0.23552412]
[1757521199463,0.85304033,113770.0,113760.0,0.27184412]
[1757521199966,0.05585033,113770.0,113760.0,0.25816412]
[1757521200178,0.86617033,113770.0,113760.0,0.25816412]
[1757521200371,0.04272033,113770.0,113760.0,0.02434324]
[1757521200566,0.04272033,113770.0,113760.0,0.27184412]
[1757521200868,0.83066033,113770.0,113760.0,0.52184412]
[1757521201070,0.85197033,113770.0,113760.0,0.52184412]
[1757521202868,0.83263,113770.0,113760.0,0.52184412]
[1757521204268,0.85180473,113770.0,113760.0,0.52184412]
[1757521204468,0.83263,113770.0,113760.0,0.52184412]
[1757521205880,0.8518092,113770.0,113760.0,0.52184412]
[1757521206677,0.0201792,113770.0,113760.0,0.52184412]
[1757521206979,0.85177082,113770.0,113760.0,0.52184412]
[1757521209083,0.85177082,113770.0,113760.0,0.28802324]
[1757521209583,0.85177082,113770.0,113760.0,0.52184412]
[1757521212384,0.04149082,113770.0,113760.0,0.52184412]
[1757521212684,0.85289082,113770.0,113760.0,0.52184412]
[1757521216392,0.85289082,113770.0,113760.0,1.07184412]
[1757521217595,0.85289082,113770.0,113760.0,0.83802324]
[1757521217798,0.86602082,113770.0,113760.0,1.07184412]
[1757521217988,0.85289082,113770.0,113760.0,1.07184412]
[1757521221490,0.02018082,113770.0,113760.0,1.18875456]
[1757521221995,0.09270256,113790.0,113780.0,0.03432]
[1757521222191,0.63754256,113790.0,113780.0,0.15123044]
[1757521222588,0.09270256,113790.0,113780.0,0.03432]
[1757521222788,0.09270256,113790.0,113780.0,0.26814088]
[1757521223295,0.09370256,113790.0,113780.0,0.26814088]
[1757521224095,0.10960256,113790.0,113780.0,0.26914088]
[1757521225293,0.09670256,113790.0,113780.0,0.26914088]
[1757521226205,0.35960256,113790.0,113780.0,0.001]
[1757521226508,0.476513,113790.0,113780.0,0.11791044]
[1757521226711,0.35960256,113790.0,113780.0,0.11791044]
[1757521226905,0.476513,113790.0,113780.0,0.11791044]
[1757521227095,0.35960256,113790.0,113780.0,0.11791044]
[1757521227299,0.476513,113790.0,113780.0,0.11791044]
[1757521227500,0.35960256,113790.0,113780.0,0.11791044]
[1757521228409,0.35960256,113790.0,113780.0,0.001]
[1757521228604,0.476513,113790.0,113780.0,0.11791044]
[1757521228909,0.476513,113790.0,113780.0,0.001]
[1757521229109,0.476513,113790.0,113780.0,0.11791044]
[1757521230511,0.476513,113790.0,113780.0,0.001]
[1757521230710,0.476513,113790.0,113780.0,0.11791044]
[1757521233613,0.476513,113790.0,113780.0,0.001]
[1757521233913,0.49535186,113790.0,113780.0,0.001]
[1757521234212,0.49535186,113790.0,113780.0,0.11791044]
[1757521234610,0.37844142,113790.0,113780.0,0.11791044]
[1757521234907,1.19228142,113790.0,113780.0,0.001]
[1757521235113,1.19228142,113790.0,113780.0,0.11791044]
[1757521235311,1.23947397,113790.0,113780.0,0.11791044]
[1757521235612,1.23935397,113790.0,113780.0,0.11791044]
[1757521236413,1.35626441,113790.0,113780.0,0.11791044]
[1757521237016,1.23935397,113790.0,113780.0,0.11791044]
[1757521237516,1.19216142,113790.0,113780.0,0.11791044]
[1757521238516,1.19216142,113790.0,113780.0,0.13938044]
[1757521238715,1.30907186,113790.0,113780.0,0.13938044]
[1757521238908,1.30907186,113790.0,113780.0,0.11791044]
[1757521239309,1.05907186,113790.0,113780.0,0.11791044]
[1757521239511,0.94216142,113790.0,113780.0,0.11791044]
[1757521240110,0.94216142,113790.0,113780.0,0.001]
[1757521240310,0.94216142,113790.0,113780.0,0.11791044]
[1757521242116,1.05907186,113790.0,113780.0,0.001]
[1757521242417,1.05907186,113790.0,113780.0,0.11791044]
[1757521242619,0.94216142,113790.0,113780.0,0.11791044]
[1757521242917,0.94216142,113790.0,113780.0,0.12669044]
[1757521245220,0.94216142,113790.0,113780.0,0.14816044]
[1757521245721,0.94216142,113790.0,113780.0,0.12669044]
[1757521245913,1.05907186,113790.0,113780.0,0.00978]
[1757521246313,0.94216142,113790.0,113780.0,0.00978]
[1757521246514,1.05907186,113790.0,113780.0,0.00978]
[1757521247020,1.040233,113790.0,113780.0,0.00978]
[1757521247714,1.33742555,113790.0,113780.0,0.00978]
[1757521247919,0.55858428,113790.0,113780.0,0.00978]
[1757521248116,1.37166428,113790.0,113780.0,0.00978]
[1757521248907,1.30875555,113790.0,113780.0,0.00978]
[1757521249217,1.19184511,113790.0,113780.0,0.00978]
[1757521249416,1.30863555,113790.0,113780.0,0.00978]
[1757521250217,0.49567555,113790.0,113780.0,0.00978]
[1757521250421,1.36676127,113790.0,113780.0,0.18509616]
[1757521251321,1.41403168,113790.0,113780.0,0.18509616]
[1757521252516,1.23871552,113790.0,113780.0,0.18509616]
[1757521252723,1.41403168,113790.0,113780.0,0.18509616]
[1757521252913,1.23847552,113790.0,113780.0,0.18509616]
[1757521253113,1.36652127,113790.0,113780.0,0.00978]
[1757521253309,1.36652127,113790.0,113780.0,0.18509616]
[1757521253914,1.41379251,113790.0,113780.0,0.18509616]
[1757521255226,1.41379251,113790.0,113780.0,0.00978]
[1757521255523,1.41379251,113790.0,113780.0,0.18509616]
[1757521257223,1.41379251,113790.0,113780.0,0.00978]
[1757521257525,1.41379251,113790.0,113780.0,0.18509616]
[1757521257920,1.36652127,113790.0,113770.0,0.17531616]
[1757521258118,0.25092129,113780.0,113770.0,0.17531616]
[1757521258327,0.27008384,113780.0,113770.0,0.17531616]
[1757521259528,0.09476768,113780.0,113770.0,0.17531616]
[1757521259725,0.27008384,113780.0,113770.0,0.17531616]
[1757521259931,0.01313,113770.0,113760.0,0.55070324]
[1757521260124,1.02198616,113770.0,113760.0,0.55070324]
[1757521260325,1.26375,113770.0,113760.0,0.55070324]
[1757521260531,1.5310936,113770.0,113760.0,0.2997101]
[1757521260833,1.64350103,113770.0,113730.0,0.00178812]
[1757521261128,0.39789714,113740.0,113730.0,0.00178812]
[1757521261331,1.05538353,113740.0,113730.0,0.17710428]
[1757521261632,1.02832686,113740.0,113730.0,0.17710428]
[1757521262024,1.10898664,113740.0,113730.0,0.17710428]
[1757521263133,1.10898664,113740.0,113730.0,0.19953428]
[1757521263533,0.29534664,113740.0,113730.0,0.19953428]
[1757521263730,1.10870664,113740.0,113730.0,0.20153428]
[1757521265233,0.29534664,113740.0,113730.0,0.17910428]
[1757521265430,1.10866664,113740.0,113730.0,0.20153428]
[1757521265936,0.93307048,113740.0,113730.0,0.20153428]
[1757521266434,1.10838664,113740.0,113730.0,0.20153428]
[1757521268630,1.10798664,113740.0,113730.0,0.20153428]
[1757521269231,0.93255048,113740.0,113730.0,0.20153428]
[1757521269431,0.12003048,113740.0,113730.0,0.62685044]
[1757521269640,0.93243048,113740.0,113730.0,0.62685044]
[1757521270539,0.90342938,113740.0,113730.0,0.62685044]
[1757521270737,0.88418683,113740.0,113730.0,0.8021666]
[1757521271231,0.07170683,113740.0,113730.0,0.8021666]
[1757521271431,0.81248,113750.0,113730.0,0.8021666]
[1757521271432,0.81248,113750.0,113730.0,0.62685044]
[1757521271631,0.81248,113750.0,113740.0,0.38702232]
[1757521271632,0.83201004,113750.0,113740.0,0.38702232]
[1757521271829,0.01953004,113750.0,113740.0,0.38702232]
[1757521272032,0.83201004,113750.0,113740.0,0.56233848]
[1757521272233,0.83185004,113750.0,113740.0,0.56233848]
[1757521272532,0.01953192,113750.0,113740.0,0.81233848]
[1757521272732,0.01953192,113750.0,113740.0,0.90023678]
[1757521272932,0.22258098,113780.0,113770.0,0.03639]
[1757521273129,0.31383449,113780.0,113770.0,0.21170616]
[1757521273339,0.06679833,113780.0,113770.0,0.21170616]
[1757521273537,0.83189351,113780.0,113770.0,0.38702232]
[1757521273742,0.08999221,113780.0,113770.0,0.38702232]
[1757521274036,0.91108026,113780.0,113770.0,0.38702232]
[1757521274729,0.91308026,113780.0,113770.0,0.38702232]
[1757521276543,0.91308026,113780.0,113770.0,0.21170616]
[1757521276544,1.08839642,113780.0,113770.0,0.21170616]
[1757521277139,1.08839642,113780.0,113770.0,0.18927616]
[1757521277542,1.08839642,113780.0,113770.0,0.01396]
[1757521277736,1.08839642,113780.0,113770.0,0.18927616]
[1757521278140,1.08839642,113780.0,113770.0,0.21170616]
[1757521278345,0.10068026,113780.0,113770.0,0.03639]
[1757521278546,0.91240026,113780.0,113770.0,0.03639]
[1757521278747,0.91240026,113780.0,113770.0,0.21170616]
[1757521279847,0.91240026,113780.0,113770.0,0.03639]
[1757521280044,1.08771642,113780.0,113770.0,0.21170616]
[1757521280947,1.51303258,113780.0,113770.0,0.01396]
[1757521281250,1.20966508,113780.0,113770.0,0.01396]
[1757521281442,1.5602974,113780.0,113770.0,0.01396]
[1757521281641,1.5602974,113780.0,113760.0,0.18927616]
[1757521281843,0.17531616,113770.0,113760.0,0.18927616]
[1757521282044,0.19484967,113770.0,113760.0,0.18927616]
[1757521283246,0.19484967,113770.0,113760.0,0.21041616]
[1757521283653,1.00664967,113770.0,113760.0,0.21041616]
[1757521283848,0.01953351,113770.0,113760.0,0.38573232]
[1757521284154,0.81168,113770.0,113760.0,0.38573232]
[1757521284341,1.00752967,113770.0,113760.0,0.38573232]
[1757521285250,1.00752967,113770.0,113760.0,0.21041616]
[1757521286950,1.00752967,113770.0,113760.0,0.0351]
[1757521287250,1.00752967,113770.0,113760.0,0.21041616]
[1757521287450,1.00752967,113770.0,113760.0,0.38573232]
[1757521287952,0.83221351,113770.0,113760.0,0.38573232]
[1757521288154,1.00752967,113770.0,113760.0,0.38573232]
[1757521288356,1.00752967,113770.0,113760.0,0.01396]
[1757521288651,1.00752967,113770.0,113760.0,0.18927616]
[1757521290855,1.00752967,113770.0,113760.0,0.21041616]
[1757521291353,1.00752967,113770.0,113760.0,0.18927616]
[1757521291849,0.19584967,113770.0,113760.0,0.18927616]
[1757521292051,0.83157351,113770.0,113760.0,0.38573232]
[1757521292347,0.02053351,113770.0,113760.0,0.38573232]
[1757521292553,1.00696967,113770.0,113760.0,0.38573232]
[1757521292941,1.00692967,113770.0,113760.0,0.38573232]
[1757521293348,1.00680967,113770.0,113760.0,0.38573232]
[1757521294155,0.83149351,113770.0,113760.0,0.38573232]
[1757521294457,1.00680967,113770.0,113760.0,0.38573232]
[1757521294648,0.83166664,113770.0,113760.0,0.38573232]
[1757521294954,1.0069828,113770.0,113760.0,0.38573232]
[1757521297159,1.0069828,113770.0,113760.0,0.0351]
[1757521297361,1.05424762,113770.0,113760.0,0.01396]
[1757521297750,1.0069828,113770.0,113760.0,0.01396]
[1757521298050,1.07000256,113770.0,113760.0,0.01396]
[1757521298956,1.0069828,113770.0,113750.0,0.19602616]
[1757521299163,0.22251187,113760.0,113750.0,0.19602616]
[1757521299358,0.24213851,113760.0,113750.0,0.19602616]
[1757521299661,0.06682235,113760.0,113750.0,0.21716616]
[1757521299953,0.22251187,113760.0,113750.0,0.21716616]
[1757521300160,0.24213851,113760.0,113750.0,0.21716616]
[1757521300359,0.24213851,113760.0,113750.0,0.02071]
[1757521300761,0.06682235,113760.0,113750.0,0.21716616]
[1757521301060,1.03403187,113760.0,113750.0,0.21716616]
[1757521301252,1.05365851,113760.0,113750.0,0.21716616]
[1757521302263,0.87834235,113760.0,113750.0,0.21716616]
[1757521302468,1.05365851,113760.0,113750.0,0.21716616]
[1757521303761,1.05365851,113760.0,113750.0,0.21816616]
[1757521303762,1.05465851,113760.0,113750.0,0.21816616]
[1757521303965,0.87934235,113760.0,113750.0,0.21816616]
[1757521304467,1.05465851,113760.0,113750.0,0.21816616]
[1757521304763,1.05437851,113760.0,113750.0,0.21141616]
[1757521304975,1.05429851,113760.0,113750.0,0.21141616]
[1757521305177,0.87898235,113760.0,113750.0,0.21141616]
[1757521305570,1.05429851,113760.0,113750.0,0.21141616]
[1757521305771,1.05429851,113760.0,113750.0,0.21816616]
[1757521307672,0.24313851,113760.0,113750.0,0.04285]
[1757521307871,1.05417851,113760.0,113750.0,0.21816616]
[1757521308671,0.87886235,113760.0,113750.0,0.21816616]
[1757521308871,1.05417851,113760.0,113750.0,0.21816616]
[1757521309077,0.06782235,113760.0,113750.0,0.21816616]
[1757521309272,0.87878235,113760.0,113750.0,0.39348232]
[1757521309472,0.06782235,113760.0,113750.0,0.21816616]
[1757521309781,0.87878235,113760.0,113750.0,0.04285]
[1757521309969,1.05409851,113760.0,113750.0,0.21816616]
[1757521311782,0.06782235,113760.0,113750.0,0.21816616]
[1757521312086,1.05409851,113760.0,113750.0,0.21816616]
[1757521312477,0.87878235,113760.0,113750.0,0.15976765]
[1757521313684,0.06782235,113760.0,113750.0,0.15976765]
[1757521313883,0.81870235,113760.0,113750.0,0.5266853]
[1757521314189,0.02062664,113760.0,113750.0,0.5266853]
[1757521325196,0.02062664,113760.0,113750.0,0.53544841]
[1757521325389,0.12634246,113780.0,113770.0,0.03486]
[1757521325693,0.0704587,113780.0,113770.0,0.2686953]
[1757521325893,0.81084,113790.0,113780.0,0.03486]
[1757521326095,0.81084,113790.0,113780.0,0.2686953]
[1757521326795,0.81084,113790.0,113780.0,0.2666953]
[1757521326988,0.81084,113790.0,113780.0,0.2734453]
[1757521327584,0.81384,113790.0,113780.0,0.15652765]
[1757521327792,0.81384,113790.0,113780.0,0.15352765]
[1757521328192,0.88312581,113790.0,113780.0,0.15352765]
[1757521328694,0.89579022,113790.0,113780.0,0.2714453]
[1757521328990,0.89279022,113790.0,113780.0,0.2704453]
[1757521329190,1.25670787,113790.0,113780.0,0.01525]
[1757521329488,1.25670787,113790.0,113780.0,0.00775]
[1757521329489,1.25970787,113790.0,113780.0,0.00775]
[1757521329695,1.30694879,113790.0,113780.0,0.00775]
[1757521331298,1.30694879,113790.0,113780.0,0.02125]
[1757521331690,0.49610879,113790.0,113780.0,0.04261]
[1757521331886,0.93995114,113790.0,113780.0,0.15952765]
[1757521332199,1.05686879,113790.0,113780.0,0.15952765]
[1757521334099,1.05686879,113790.0,113780.0,0.04261]
[1757521334292,1.05686879,113790.0,113780.0,0.15952765]
[1757521336300,0.12919114,113790.0,113780.0,0.15952765]
[1757521336495,0.24610879,113790.0,113780.0,0.15952765]
[1757521336701,1.05682879,113790.0,113780.0,0.15952765]
[1757521337202,0.24610879,113790.0,113780.0,0.15952765]
[1757521337404,1.0767876,113790.0,113780.0,0.15952765]
[1757521338399,1.02954668,113790.0,113780.0,0.15952765]
[1757521338608,0.91262903,113790.0,113780.0,0.15952765]
[1757521338795,0.95987497,113790.0,113780.0,0.15952765]
[1757521339000,0.14915497,113790.0,113780.0,0.2764453]
[1757521339303,0.95983497,113790.0,113780.0,0.2764453]
[1757521339906,0.91259405,113790.0,113780.0,0.2764453]
[1757521340402,0.95983497,113790.0,113780.0,0.04261]
[1757521340603,0.95983497,113790.0,113780.0,0.2764453]
[1757521346407,0.95979497,113790.0,113780.0,0.2764453]
[1757521348508,0.14915497,113790.0,113780.0,0.2764453]
[1757521348712,0.10191405,113790.0,113780.0,0.5264453]
[1757521348906,0.91251405,113790.0,113780.0,0.5264453]
[1757521349102,0.09324964,113790.0,113780.0,0.64336295]
[1757521349503,0.04724092,113810.0,113800.0,0.03431]
[1757521349702,0.85780092,113810.0,113800.0,0.03431]
[1757521350002,0.81056,113810.0,113800.0,0.2681453]
[1757521350203,0.13836388,113820.0,113810.0,0.03431]
[1757521350512,0.94892388,113820.0,113810.0,0.15122765]
[1757521351007,0.94892388,113820.0,113810.0,0.14722765]
[1757521351498,0.95392388,113820.0,113810.0,0.14822765]
[1757521351701,1.07955214,113820.0,113810.0,0.14822765]
[1757521351896,1.32955214,113820.0,113810.0,0.03131]
[1757521352104,1.44646979,113820.0,113810.0,0.02218]
[1757521352409,0.016,113810.0,113800.0,0.03431]
[1757521352712,0.13291765,113810.0,113800.0,0.15122765]
[1757521353310,0.016,113810.0,113800.0,0.15122765]
[1757521353617,0.13291765,113810.0,113800.0,0.15122765]
[1757521353811,0.13291765,113810.0,113800.0,0.15422765]
[1757521354112,0.016,113810.0,113800.0,0.15422765]
[1757521354312,0.016,113810.0,113800.0,0.03731]
[1757521354513,0.016,113810.0,113800.0,0.15422765]
[1757521359416,0.016,113810.0,113800.0,0.03731]
[1757521359612,0.016,113810.0,113800.0,0.15422765]
[1757521360215,0.13291765,113810.0,113800.0,0.11991765]
[1757521360517,0.13291765,113810.0,113800.0,0.003]
[1757521360518,0.38291765,113810.0,113800.0,0.003]
[1757521360910,0.43015857,113810.0,113800.0,0.003]
[1757521361609,0.4497268,113810.0,113800.0,0.003]
[1757521363115,0.33280915,113810.0,113800.0,0.003]
[1757521363318,0.4497268,113810.0,113800.0,0.00263]
[1757521363515,1.2600068,113810.0,113800.0,0.00263]
[1757521365320,1.2600068,113810.0,113800.0,0.02381]
[1757521366427,1.14304915,113810.0,113800.0,0.02381]
[1757521366720,1.2599668,113810.0,113800.0,0.02381]
[1757521366921,1.2599668,113810.0,113800.0,0.00263]
[1757521368630,1.14304915,113810.0,113800.0,0.00263]
[1757521368921,1.2599668,113810.0,113800.0,0.00263]
[1757521369126,1.21272588,113810.0,113800.0,0.00263]
[1757521369323,1.09580823,113810.0,113800.0,0.02381]
[1757521369515,1.21272588,113810.0,113800.0,0.02381]
[1757521369715,1.21268588,113810.0,113800.0,0.02381]
[1757521369915,1.21268588,113810.0,113800.0,0.00263]
[1757521370214,1.09576823,113810.0,113800.0,0.00263]
[1757521370410,1.25994982,113810.0,113800.0,0.00263]
[1757521372417,1.14303217,113810.0,113800.0,0.00263]
[1757521372624,1.25994982,113810.0,113800.0,0.00263]
[1757521373523,1.21268588,113810.0,113800.0,0.00263]
[1757521374421,1.27104067,113810.0,113800.0,0.00263]
[1757521374728,0.46084067,113810.0,113800.0,0.17790244]
[1757521374922,0.50812777,113810.0,113800.0,0.00263]
[1757521375236,1.27096067,113810.0,113800.0,0.17790244]
[1757521376126,0.46084067,113810.0,113800.0,0.21296244]
[1757521376321,1.02092067,113810.0,113800.0,0.21296244]
[1757521376521,0.84564823,113810.0,113800.0,0.21296244]
[1757521376826,1.08390856,113810.0,113800.0,0.21296244]
[1757521377224,0.27382856,113810.0,113800.0,0.38823488]
[1757521377422,1.08390856,113810.0,113800.0,0.38823488]
[1757521377621,1.06823159,113810.0,113800.0,0.38823488]
[1757521377925,0.89295915,113810.0,113800.0,0.38823488]
[1757521378321,0.84564823,113810.0,113800.0,0.38823488]
[1757521378827,1.02092067,113810.0,113800.0,0.38823488]
[1757521379618,1.0682426,113810.0,113800.0,0.38823488]
[1757521381527,1.0682426,113810.0,113800.0,0.03769]
[1757521381823,1.0682426,113810.0,113800.0,0.20339094]
[1757521382827,0.89297016,113810.0,113800.0,0.20339094]
[1757521383330,1.0682426,113810.0,113800.0,0.20339094]
[1757521383528,0.89297016,113810.0,113800.0,0.0144385]
[1757521383726,1.0682426,113810.0,113800.0,0.18971094]
[1757521384432,1.0682426,113810.0,113800.0,0.0144385]
[1757521384630,1.0682426,113810.0,113790.0,0.01313]
[1757521384827,0.89297016,113810.0,113800.0,0.17527244]
[1757521385132,0.89297016,113810.0,113800.0,0.02138]
[1757521385434,0.84564823,113810.0,113800.0,0.02138]
[1757521385929,1.02292067,113810.0,113800.0,0.19665244]
[1757521387532,1.02292067,113810.0,113800.0,0.17527244]
[1757521387732,1.02292067,113810.0,113790.0,0.01313]
[1757521387933,0.84764823,113810.0,113800.0,0.19665244]
[1757521388134,1.02292067,113810.0,113800.0,0.19665244]
[1757521388320,1.02292067,113810.0,113800.0,0.21033244]
[1757521388525,1.022764,113810.0,113800.0,0.21033244]
[1757521391236,1.022764,113810.0,113800.0,0.17527244]
[1757521391735,1.022764,113810.0,113790.0,0.01313]
[1757521391934,0.24593182,113800.0,113790.0,0.03451]
[1757521392234,0.26550338,113800.0,113790.0,0.20978244]
[1757521392941,0.09023094,113800.0,113790.0,0.20978244]
[1757521393139,0.26550338,113800.0,113790.0,0.20978244]
[1757521393737,0.26550338,113800.0,113790.0,0.21178244]
[1757521394238,0.90003094,113800.0,113790.0,0.21178244]
[1757521394536,1.07530338,113800.0,113790.0,0.21178244]
[1757521396740,0.26550338,113800.0,113790.0,0.21178244]
[1757521396941,0.90003094,113800.0,113790.0,0.21178244]
[1757521397130,0.09023094,113800.0,113790.0,0.21178244]
[1757521397429,0.89995094,113800.0,113790.0,0.21178244]
[1757521398439,0.89995094,113800.0,113790.0,0.03651]
[1757521398634,1.07522338,113800.0,113790.0,0.03651]
[1757521398830,1.07522338,113800.0,113790.0,0.21178244]
[1757521399430,0.89995094,113800.0,113790.0,0.21178244]
[1757521399634,1.07522338,113800.0,113790.0,0.21178244]
[1757521400042,1.09534613,113800.0,113790.0,0.21178244]
[1757521401439,1.09534613,113800.0,113790.0,0.03651]
[1757521401640,1.09534613,113800.0,113790.0,0.21178244]
[1757521403746,0.92007369,113800.0,113790.0,0.21178244]
[1757521403936,1.09534613,113800.0,113790.0,0.21178244]
[1757521406655,1.09534613,113800.0,113790.0,0.03651]
[1757521407156,1.09534613,113800.0,113790.0,0.21178244]
[1757521408356,0.11035369,113800.0,113790.0,0.03651]
[1757521408558,0.11035369,113800.0,113790.0,0.38705488]
[1757521408758,0.06696094,113800.0,113790.0,0.38705488]
[1757521409054,0.56377156,113800.0,113790.0,0.81232732]
[1757521409257,0.56377156,113800.0,113790.0,0.63705488]
[1757521409951,0.01957156,113800.0,113790.0,0.63705488]
[1757521410352,0.01957156,113800.0,113790.0,0.28651]
[1757521410551,0.82909156,113800.0,113790.0,0.63705488]
[1757521410957,0.85119156,113800.0,113790.0,0.63705488]
[1757521414255,0.85119156,113800.0,113790.0,0.03651]
[1757521414451,1.026464,113800.0,113790.0,0.21178244]
[1757521414653,1.026464,113800.0,113790.0,0.03651]
[1757521414954,1.276464,113800.0,113790.0,0.21178244]
[1757521415258,1.32385338,113800.0,113790.0,0.21178244]
[1757521417156,1.276464,113800.0,113790.0,0.21178244]
[1757521418054,1.32385338,113800.0,113790.0,0.21178244]
[1757521419063,1.14858094,113800.0,113790.0,0.21178244]
[1757521419360,1.07385338,113800.0,113790.0,0.21178244]
[1757521419764,1.026464,113800.0,113790.0,0.21178244]
[1757521419964,1.07385338,113800.0,113790.0,0.21178244]
[1757521421663,0.26433338,113800.0,113790.0,0.21178244]
[1757521421864,1.07369338,113800.0,113790.0,0.21178244]
[1757521422159,0.08906094,113800.0,113790.0,0.21178244]
[1757521422466,1.07369338,113800.0,113790.0,0.21178244]
[1757521423765,0.08906094,113800.0,113790.0,0.21178244]
[1757521424156,0.81582094,113800.0,113790.0,0.21178244]
[1757521424465,0.89838094,113800.0,113790.0,0.21178244]
[1757521424665,0.08906094,113800.0,113790.0,0.21178244]
[1757521424859,0.89838094,113800.0,113790.0,0.38705488]
[1757521425060,0.89838094,113800.0,113790.0,0.21178244]
[1757521425456,0.85099156,113800.0,113790.0,0.21178244]
[1757521427058,1.026264,113800.0,113790.0,0.03651]
[1757521427365,1.026264,113800.0,113790.0,0.21178244]
[1757521428162,0.85099156,113800.0,113790.0,0.21178244]
[1757521428357,0.216944,113800.0,113790.0,0.21178244]
[1757521428766,1.026184,113800.0,113790.0,0.21178244]
[1757521430567,0.85091156,113800.0,113790.0,0.21178244]
[1757521430866,1.026184,113800.0,113790.0,0.21178244]
[1757521431667,0.04167156,113800.0,113790.0,0.21178244]
[1757521431869,1.026184,113800.0,113790.0,0.21178244]
[1757521432071,0.01957156,113800.0,113790.0,0.63705488]
[1757521434272,0.04282156,113800.0,113790.0,0.63705488]
[1757521436264,0.04282156,113800.0,113790.0,0.21178244]
[1757521436471,0.04282156,113800.0,113790.0,0.15333746]
[1757521440476,0.85159276,113800.0,113790.0,0.15333746]
[1757521442275,0.82834276,113800.0,113790.0,0.27016492]
[1757521442772,0.01930276,113800.0,113790.0,0.27016492]
[1757521449077,0.01930276,113800.0,113790.0,0.72485068]
[1757521449580,0.01930276,113800.0,113790.0,0.60802322]
[1757521451182,0.01930276,113800.0,113790.0,0.61673549]
[1757521451384,0.01930276,113800.0,113790.0,0.60802322]
[1757521452477,0.01930276,113800.0,113790.0,0.72485068]
[1757521453375,0.01930276,113800.0,113790.0,0.61670806]
[1757521453680,0.01930276,113800.0,113790.0,0.73353552]
[1757521453986,0.07808357,113820.0,113810.0,0.03613]
[1757521454175,2.62922938,113830.0,113810.0,0.03613]
[1757521454483,2.60509,113830.0,113820.0,0.03613]
[1757521455078,2.60409,113830.0,113820.0,0.03513]
[1757521455382,2.60709,113830.0,113820.0,0.26878492]
[1757521455681,2.68646884,113830.0,113820.0,0.26878492]
[1757521455881,2.68846884,113830.0,113820.0,0.26878492]
[1757521456083,2.68846884,113830.0,113820.0,0.15195746]
[1757521456384,2.68846884,113830.0,113820.0,0.26878492]
[1757521457584,2.68846884,113830.0,113820.0,0.03513]
[1757521457886,2.68846884,113830.0,113820.0,0.15195746]
[1757521458484,2.8052963,113830.0,113820.0,0.15195746]
[1757521459384,3.0679263,113830.0,113810.0,0.01289]
[1757521459592,0.14680746,113820.0,113810.0,0.14006746]
[1757521459785,0.0503454,113820.0,113810.0,0.02324]
[1757521459991,0.41717286,113820.0,113810.0,0.02324]
[1757521460587,0.41717286,113820.0,113800.0,0.14732759]
[1757521460786,0.83137,113810.0,113800.0,0.17056759]
[1757521461292,0.83137,113810.0,113800.0,0.05374013]
[1757521461490,0.83137,113810.0,113800.0,0.17056759]
[1757521461889,0.94819746,113810.0,113800.0,0.17056759]
[1757521462192,1.25445684,113810.0,113800.0,0.01761013]
[1757521462887,1.25445684,113810.0,113800.0,0.13443759]
[1757521463288,1.25445684,113810.0,113800.0,0.15610759]
[1757521464792,1.25445684,113810.0,113800.0,0.01761013]
[1757521465492,0.0354,113800.0,113790.0,0.13849746]
[1757521465892,0.05444085,113800.0,113790.0,0.13849746]
[1757521466294,0.05444085,113800.0,113790.0,0.02167]
[1757521466593,0.05444085,113800.0,113790.0,0.13849746]
[1757521466988,0.04181085,113800.0,113790.0,0.15165746]
[1757521467184,0.05444085,113800.0,113790.0,0.03583]
[1757521467492,0.85033085,113800.0,113790.0,0.16143746]
[1757521468094,0.85033085,113800.0,113790.0,0.16243746]
[1757521469094,0.97978831,113800.0,113790.0,0.16243746]
[1757521469395,0.97978831,113800.0,113790.0,0.03245]
[1757521470096,0.86296085,113800.0,113790.0,0.03245]
[1757521470294,0.97978831,113800.0,113790.0,0.03245]
[1757521470990,0.97974831,113800.0,113790.0,0.03245]
[1757521472796,0.17126831,113800.0,113790.0,0.03245]
[1757521472996,0.97978831,113800.0,113790.0,0.03245]
[1757521473898,0.97978831,113800.0,113790.0,0.01078]
[1757521474302,0.17126831,113800.0,113790.0,0.03245]
[1757521474492,0.88938831,113800.0,113790.0,0.03245]
[1757521474693,0.88938831,113800.0,113790.0,0.14927746]
[1757521476499,0.88938831,113800.0,113790.0,0.01078]
[1757521476701,0.91022625,113800.0,113790.0,0.01078]
[1757521477000,0.91022625,113800.0,113790.0,0.14927746]
[1757521477199,0.91022625,113800.0,113790.0,0.03245]
[1757521477697,1.16022625,113800.0,113790.0,0.01078]
[1757521477896,1.04339879,113800.0,113790.0,0.01078]
[1757521478098,1.16022625,113800.0,113790.0,0.01078]
[1757521478404,1.04339879,113800.0,113790.0,0.01078]
[1757521478703,1.16022625,113800.0,113790.0,0.01078]
[1757521479105,0.44210625,113800.0,113790.0,0.01078]
[1757521479404,1.00054625,113800.0,113790.0,0.03245]
[1757521479799,0.19210625,113800.0,113790.0,0.03245]
[1757521479994,0.89022625,113800.0,113790.0,0.03245]
[1757521480803,0.77339879,113800.0,113790.0,0.03245]
[1757521481004,0.06264879,113800.0,113790.0,0.16243746]
[1757521481210,0.63784879,113800.0,113790.0,0.16243746]
[1757521481403,0.06264879,113800.0,113790.0,0.52926492]
[1757521481701,0.49684085,113800.0,113790.0,0.52926492]
[1757521481904,0.8515354,113820.0,113810.0,0.03483]
[1757521482108,0.8287654,113820.0,113810.0,0.03483]
[1757521482303,0.8515354,113820.0,113810.0,0.26848492]
[1757521482599,0.8515354,113820.0,113810.0,0.15165746]
[1757521483506,0.8525354,113820.0,113810.0,0.15165746]
[1757521484404,0.8545354,113820.0,113810.0,0.15165746]
[1757521485109,0.8545354,113820.0,113810.0,0.03483]
[1757521485406,0.8545354,113820.0,113810.0,0.15165746]
[1757521485708,0.8545354,113820.0,113810.0,0.16043746]
[1757521485912,0.8545354,113820.0,113810.0,0.04361]
[1757521486098,0.8545354,113820.0,113810.0,0.16043746]
[1757521486494,0.0461354,113820.0,113810.0,0.16043746]
[1757521486699,0.8544554,113820.0,113810.0,0.16043746]
[1757521488708,0.8544554,113820.0,113810.0,0.04361]
[1757521488899,0.8544554,113820.0,113810.0,0.16043746]